Cogmind - Beta 13 X2 @@@ ROGUE MODE // 2024.01.16 @ 21:15:17 Player: Minty Result: Destroyed by H-55 Commando with Gauss Rifle Performance ------------- Evolutions (1) 500 Regions Visited (6) 1200 Robots Destroyed (24) 120 Value Destroyed (675) 675 Prototype IDs (23) 460 Alien Tech Used (0) 0 Bonus (300) 300 TOTAL SCORE: 3255 Bonus ------- Aligned with FarCom 300 Cogmind --------- Core Integrity 0/400 Matter 237/300 Energy 99/100 System Corruption 1% Temperature Cool (0) Movement Core (50) Location -8/Mines Parts ------- > --- POWER (1) -------- (None) > --- PROPULSION (2) --- (None) > --- UTILITY (3) ------ Signal Interpreter Targeting Computer Targeting Computer > --- WEAPON (3) ------- (None) > --- INVENTORY (5) ---- Medium Matter Pod (100) Trap Reconfigurator Supersonic Drone Bay (1/1) Latent Energy Streamer Peak State ------------ > --- POWER ------------ Light Nuclear Core > --- PROPULSION ------- Wheel Hover Unit > --- UTILITY ---------- Hardened Medium Armor Plating Hardened Medium Armor Plating Hardened Medium Armor Plating > --- WEAPON ----------- Small Laser Rocket Launcher > --- INVENTORY -------- Light Nuclear Core Light Nuclear Core Improved Heat Sink Improved Heat Sink Medium Matter Pod [Rating: 18] Favorites ----------- Power Light Nuclear Core Engine Ion Engine Power Core Light Nuclear Core Propulsion Aluminum Leg Treads Light Treads Leg Aluminum Leg Wheel Wheel Hover Unit Hover Unit Flight Unit Flight Unit Utility Hardened Medium Armor Plating Device Improved Heat Sink Storage Small Storage Unit Processor Targeting Computer Protection Hardened Medium Armor Plating Weapon Assault Rifle Energy Gun Small Laser Energy Cannon Latent Energy Streamer Ballistic Gun Assault Rifle Launcher Rocket Launcher Special Weapon Mining Laser Build | -11 -10 -10 -9 -9 -9 -8 ------- Run | Yrd Mat Min Mat Min Exi Min Slots Evolved 2 | . . . 2 . . . Power . | . . . . . . . Propulsion . | . . . . . . . Utility 1 | . . . 1 . . . Weapon 1 | . . . 1 . . . Parts Attached 39 | 1 7 9 16 3 2 1 Power 8 | . 2 1 3 2 . . Engine 4 | . 1 1 1 1 . . Core 4 | . 1 . 2 1 . . Reactor . | . . . . . . . Propulsion 8 | . 2 3 3 . . . Treads 2 | . 2 . . . . . Leg . | . . . . . . . Wheel 1 | . . . 1 . . . Hover 3 | . . 1 2 . . . Flight 2 | . . 2 . . . . Utility 12 | . 2 1 6 1 2 . Device 4 | . 2 . 1 1 . . Storage . | . . . . . . . Processor 5 | . . 1 2 . 2 . Hackware . | . . . . . . . Protection 3 | . . . 3 . . . Artifact . | . . . . . . . Weapon 11 | 1 1 4 4 . . 1 Energy Gun 6 | . 1 1 4 . . . Energy Cannon 1 | . . . . . . 1 Ballistic Gun 1 | 1 . . . . . . Ballistic Cannon . | . . . . . . . Launcher 1 | . . 1 . . . . Special Weapon 2 | . . 2 . . . . Impact Weapon . | . . . . . . . Slashing Weapon . | . . . . . . . Piercing Weapon . | . . . . . . . Special Melee Weapon . | . . . . . . . Unidentified Prototypes . | . . . . . . . Parts Lost 16 | . 3 7 4 2 . . Power 4 | . 1 1 1 1 . . Propulsion 5 | . 1 2 2 . . . Utility 2 | . . 1 . 1 . . Weapon 5 | . 1 3 1 . . . Highest Loss Streak 6 | . 3 6 2 1 . . To Critical Strikes . | . . . . . . . Average Slot Usage (%) 68 | . 91 66 69 38 32 33 Engine 6 | . 11 9 2 7 . . Core 3 | . 2 . 8 . . . Treads 4 | . 7 13 . . . . Leg 6 | . 20 . . . . . Hover 4 | . . 4 14 . . . Device 5 | . 6 8 4 4 . . Storage 5 | . 14 6 . . . . Processor 7 | . . 5 1 22 31 33 Protection 6 | . . . 22 . . . Energy Gun 5 | . 3 6 8 4 . . Ballistic Gun 8 | . 24 6 . . . . Launcher 1 | . . . 6 . . . Naked Turns . | . . . . . . . Heaviest Build 34 | 12 16 16 34 7 1 . Greatest Support 40 | 20 40 40 12 3 3 3 Greatest Overweight (x) 5 | . . . 5 2 . . Average Overweight (x) . | . . . 2 . . . Largest Inventory Capacity 8 | 8 8 8 5 5 5 5 Average Capacity 6 | 8 8 6 5 5 5 5 Most Carried 8 | 6 8 8 5 5 5 5 Average Carried 5 | 6 6 5 4 4 4 4 Final Capacity 8 | 8 8 5 5 5 5 5 Final Carried 8 | 6 8 4 5 4 5 4 Class Distribution -------------------- 93% | Mutant 6% | Scavenger-Mutant Dominant Class ---------------- Mutant | -10/Materials Mutant | -10/Mines Mutant | -9/Materials Mutant | -9/Mines Mutant | -9/Exiles Mutant | -8/Mines Resources | -11 -10 -10 -9 -9 -9 -8 ----------- Run | Yrd Mat Min Mat Min Exi Min Matter Collected 709 | 200 176 171 137 25 . . Remotely . | . . . . . . . Salvage Created 742 | . 413 58 246 25 . . Parts 49 | . 20 9 18 2 . . Haulers Intercepted . | . . . . . . . Recyclers Shooed 1 | . . . 1 . . . Parts Field Recycled . | . . . . . . . Retrieved Matter . | . . . . . . . Parts Self-Destructed . | . . . . . . . Prevented . | . . . . . . . Kills | -11 -10 -10 -9 -9 -9 -8 ------- Run | Yrd Mat Min Mat Min Exi Min Combat Hostiles Destroyed 18 | . 9 3 6 . . . Guns 16 | . 9 3 4 . . . AOE 2 | . . . 2 . . . Classes Destroyed 5 | . 3 1 . 1 . . Worker 1 | . . . . 1 . . Tunneler 2 | . 1 1 . . . . Watcher 3 | . 1 . 2 . . . Swarmer 3 | . . 3 . . . . Grunt 15 | . 9 . 6 . . . Best Kill Streak 7 | . 7 3 3 1 . . Combat Bots Only 7 | . 7 3 2 . . . Max Kills in Single Turn 2 | . 1 1 2 1 . . Gunslinging . | . . . . . . . Exploded 1 | . . . 1 . . . Melee . | . . . . . . . Uniques/NPCs Destroyed . | . . . . . . . Combat | -11 -10 -10 -9 -9 -9 -8 -------- Run | Yrd Mat Min Mat Min Exi Min Hostile Shots Fired 219 | . 49 43 59 54 . 14 Missed 68 | . 14 16 18 14 . 6 Damage Taken 1775 | . 420 432 522 310 . 91 Core 620 | . 59 141 89 248 . 83 Absorbed by Shields 17 | . . . . 17 . . Core Remaining (%) 60 | 100 . 20 . . . . Volleys Fired 83 | . 23 8 49 3 . . Largest 2 | . 2 2 2 1 . . Hottest 100 | . 85 100 80 40 . . Shots Fired 111 | . 46 9 53 3 . . Gun 107 | . 46 8 50 3 . . Cannon . | . . . . . . . Launcher 3 | . . . 3 . . . Special 1 | . . 1 . . . . Kinetic 46 | . 39 7 . . . . Thermal 62 | . 7 2 50 3 . . Explosive 3 | . . . 3 . . . Electromagnetic . | . . . . . . . Robot Hit Streak 10 | . 10 6 7 2 . . Robot Miss Streak 4 | . 2 1 4 1 . . Penetration Max . | . . . . . . . Secondary Targets 3 | . 3 . . . . . Max Gunslinging Chain 1 | . 1 . . . . . Shots Hit Robots 74 | . 32 6 34 2 . . Core Hits 42 | . 17 4 20 1 . . Critical Kills . | . . . . . . . Critical Parts Destroyed 1 | . . 1 . . . . Critical Strikes 2 | . 1 1 . . . . Burn 1 | . 1 . . . . . Destroy 1 | . . 1 . . . . Melee Attacks . | . . . . . . . Impact . | . . . . . . . Slashing . | . . . . . . . Piercing . | . . . . . . . Sneak Attacks . | . . . . . . . Combat Hostiles . | . . . . . . . Follow-up Attacks . | . . . . . . . Damage Inflicted 1072 | . 444 73 525 30 . . Guns 922 | . 442 73 384 23 . . Cannons . | . . . . . . . Explosions 140 | . . . 140 . . . Melee . | . . . . . . . Ramming 10 | . 2 . 1 7 . . Kinetic 420 | . 360 60 . . . . Thermal 502 | . 82 13 384 23 . . Explosive 140 | . . . 140 . . . Electromagnetic . | . . . . . . . Impact . | . . . . . . . Slashing . | . . . . . . . Piercing . | . . . . . . . Highest Corruption 7 | . . 7 . 1 1 1 Average Corruption 2 | . . 4 . 1 1 1 Corruption Purged . | . . . . . . . Corruption Blocked . | . . . . . . . Effects 4 | . . 2 . 1 1 . Message Errors 1 | . . . . . 1 . Matter Fused 2 | . . 1 . 1 . . Data Loss (major) 1 | . . 1 . . . . Overload Shots . | . . . . . . . Overflow Damage . | . . . . . . . Projectiles . | . . . . . . . Explosions . | . . . . . . . Melee . | . . . . . . . Knockbacks . | . . . . . . . Impact . | . . . . . . . Kinetic . | . . . . . . . Secondary . | . . . . . . . Self-Inflicted Damage 3 | . . . . 3 . . Shots . | . . . . . . . Rammed 4 | . . . 1 3 . . Targets Rammed 6 | . 2 . 1 3 . . Kicked 2 | . 2 . . . . . Crushed . | . . . . . . . Highest Temperature 283 | . 8 8 283 . . . Average Temperature 80 | . 5 8 85 . . . Received Heat Transfer 592 | . 273 58 261 . . . Siege Activations . | . . . . . . . Robots Corrupted . | . . . . . . . Combat Hostiles . | . . . . . . . Parts Fried . | . . . . . . . Impact Corruptions . | . . . . . . . Robots Melted . | . . . . . . . Combat Hostiles . | . . . . . . . Parts Melted 1 | . . . 1 . . . Heat Transferred 1196 | . 259 37 850 50 . . Parts Sabotaged . | . . . . . . . Parts Stolen . | . . . . . . . Parts Stripped . | . . . . . . . Power Chain Reactions . | . . . . . . . Missiles Intercepted . | . . . . . . . Alert | -11 -10 -10 -9 -9 -9 -8 ------- Run | Yrd Mat Min Mat Min Exi Min Peak Influence 340 | . 123 122 340 151 . 30 Initial 47 | . . 47 43 46 . . Average 90 | . 39 84 164 71 . 18 Maximum Alert Level 1 | . . . 1 . . . Low Security (%) 86 | 100 100 100 57 100 . 100 Level 1 13 | . . . 42 . . . Level 2 . | . . . . . . . Level 3 . | . . . . . . . Level 4 . | . . . . . . . Level 5 . | . . . . . . . High Security . | . . . . . . . Max Security . | . . . . . . . Squads Dispatched 2 | . 1 . 1 . . . Investigation 1 | . 1 . . . . . Extermination . | . . . . . . . Reinforcement 1 | . . . 1 . . . Assault . | . . . . . . . Garrison . | . . . . . . . Intercept . | . . . . . . . Searches Triggered . | . . . . . . . Construction Impeded . | . . . . . . . Haulers Reinforced . | . . . . . . . Active Scanning Responses . | . . . . . . . Cargo Convoy Interrupts . | . . . . . . . Stealth | -11 -10 -10 -9 -9 -9 -8 --------- Run | Yrd Mat Min Mat Min Exi Min Distress Signals 1 | . . . 1 . . . Communications Jammed . | . . . . . . . Distress Signals . | . . . . . . . Times Spotted 62 | . 10 25 14 8 . 5 Peak Tracking Total 16 | . 7 16 4 3 . 3 Tactical Retreats 10 | . . 4 2 4 . . Traps | -11 -10 -10 -9 -9 -9 -8 ------- Run | Yrd Mat Min Mat Min Exi Min Traps Triggered 1 | . 1 . . . . . Indirectly . | . . . . . . . Trap Hack Attempts . | . . . . . . . Triggered . | . . . . . . . Disarmed . | . . . . . . . Reprogrammed . | . . . . . . . Reused 2 | . . . . 2 . . Traps Extracted . | . . . . . . . Installed 2 | . . . . 2 . . Triggered 2 | . . . . 2 . . Machines | -11 -10 -10 -9 -9 -9 -8 ---------- Run | Yrd Mat Min Mat Min Exi Min Machines Disabled 2 | . . . 2 . . . Max in Single Turn 2 | . . . 2 . . . Machines Repaired . | . . . . . . . Machines Dismantled . | . . . . . . . Machines Sabotaged . | . . . . . . . Overloaded Fab Kills . | . . . . . . . Hacking | -11 -10 -10 -9 -9 -9 -8 --------- Run | Yrd Mat Min Mat Min Exi Min Machines Accessed 4 | . 1 . 2 . 1 . Terminals 3 | . 1 . 2 . . . Fabricators . | . . . . . . . Repair Stations . | . . . . . . . Recycling Units . | . . . . . . . Scanalyzers . | . . . . . . . Garrison Access . | . . . . . . . Total Hacks 10 | . 2 . 7 . 1 . Successful 6 | . . . 5 . 1 . Failed 4 | . 2 . 2 . . . Catastrophic 1 | . 1 . . . . . Database Lockouts . | . . . . . . . Manual 1 | . . . . . 1 . Terminals 9 | . 2 . 7 . . . Fabricators . | . . . . . . . Repair Stations . | . . . . . . . Recycling Units . | . . . . . . . Scanalyzers . | . . . . . . . Garrison Access . | . . . . . . . Terminal Hacks 6 | . . . 5 . 1 . Branch Access Points 1 | . . . 1 . . . Emergency Access Points 1 | . . . 1 . . . Terminal Index 1 | . . . 1 . . . Dispatch Records 1 | . . . 1 . . . Zone Layout 1 | . . . 1 . . . Derelict Proto ID Bank 1 | . . . . . 1 . Fabricator Hacks . | . . . . . . . Repair Station Hacks . | . . . . . . . Recycling Unit Hacks . | . . . . . . . Scanalyzer . | . . . . . . . Garrison Access Hacks . | . . . . . . . Unauthorized Hacks . | . . . . . . . Terminals . | . . . . . . . Fabricators . | . . . . . . . Repair Stations . | . . . . . . . Recycling Units . | . . . . . . . Scanalyzers . | . . . . . . . Garrison Access . | . . . . . . . Data Cores Recovered . | . . . . . . . Used . | . . . . . . . Hacking Detections 2 | . 1 . 1 . . . Full Trace Events 1 | . 1 . . . . . Feedback Events . | . . . . . . . Feedback Blocked . | . . . . . . . Robot Schematics Acquired . | . . . . . . . Robots Built . | . . . . . . . Authchips . | . . . . . . . Time . | . . . . . . . Total Robot Build Rating . | . . . . . . . Part Schematics Acquired . | . . . . . . . Parts Built . | . . . . . . . Authchips . | . . . . . . . Time . | . . . . . . . Total Part Build Rating . | . . . . . . . Parts Repaired . | . . . . . . . Time . | . . . . . . . Parts Recycled . | . . . . . . . Recycled Matter . | . . . . . . . Retrieved Matter . | . . . . . . . Retrieved Components . | . . . . . . . Parts Scanalyzed . | . . . . . . . Part Schematics Acquired . | . . . . . . . Parts Damaged . | . . . . . . . Bothacking | -11 -10 -10 -9 -9 -9 -8 ------------ Run | Yrd Mat Min Mat Min Exi Min Used RIF Installer . | . . . . . . . Robots Hacked . | . . . . . . . Non-combat . | . . . . . . . Combat . | . . . . . . . Robot Hacks Applied . | . . . . . . . Relay Couplers Released . | . . . . . . . Fabnet Peak Effective % . | . . . . . . . Robots Rewired . | . . . . . . . Allies Hacked . | . . . . . . . Hacks Repelled . | . . . . . . . Allies | -11 -10 -10 -9 -9 -9 -8 -------- Run | Yrd Mat Min Mat Min Exi Min Total Allies . | . . . . . . . Largest Group . | . . . . . . . Highest-Rated Group . | . . . . . . . Highest-Rated Ally . | . . . . . . . Total Orders . | . . . . . . . Ally Attacks . | . . . . . . . Total Damage . | . . . . . . . Kills . | . . . . . . . Allies Corrupted . | . . . . . . . Allies Melted . | . . . . . . . Intel | -11 -10 -10 -9 -9 -9 -8 ------- Run | Yrd Mat Min Mat Min Exi Min Robot Analysis Total . | . . . . . . . Derelict Logs Recovered 2 | . . 1 . 1 . . Drone Launches . | . . . . . . . Drone Recoveries . | . . . . . . . Exploration | -11 -10 -10 -9 -9 -9 -8 ------------- Run | Yrd Mat Min Mat Min Exi Min Turns Passed 1677 | 2 550 232 482 239 154 18 Spaces Moved 1259 | 1 175 259 176 331 286 31 Core 796 | . . 144 4 331 286 31 Treads 130 | . 74 56 . . . . Legs 102 | 1 101 . . . . . Wheels 24 | . . . 24 . . . Hover 149 | . . 1 148 . . . Flight 58 | . . 58 . . . . Fastest Speed 37 | 120 120 37 60 50 50 50 Average Speed 90 | 120 136 71 194 64 50 50 Slowest Speed 360 | 120 160 160 360 150 50 50 Overloaded Moves . | . . . . . . . Propulsion Burnouts . | . . . . . . . Robots Hopped 14 | . . 14 . . . . Cave-ins Triggered . | . . . . . . . Exploration Rate (%) 34 | 1 28 53 18 68 61 9 Regions Visited 6 Branch Regions 4 Pre-discovered Areas 2 | . . . . 2 . . Known Exits Taken 2 | . . . 1 . 1 . Unknown Exits Taken 4 | 1 1 1 . 1 . . Scrap Searched 2 | . . 1 . 1 . . Spaces Dug . | . . . . . . . Terrain Destroyed 24 | . . 1 23 . . . Melee . | . . . . . . . Projectile 1 | . . 1 . . . . AOE 23 | . . . 23 . . . Terrain Rammed . | . . . . . . . Walls Destroyed . | . . . . . . . Machines Disabled . | . . . . . . . Actions | -11 -10 -10 -9 -9 -9 -8 --------- Run | Yrd Mat Min Mat Min Exi Min Total 1674 | 1 439 285 262 354 299 34 Wait 244 | . 224 10 4 5 1 . Move 1233 | . 174 238 175 330 285 31 Hop 6 | . . 6 . . . . Pick Up 20 | . 6 3 5 . 6 . Fast Attach 17 | . 1 4 12 . . . Attach 14 | . 3 4 2 2 2 1 Detach 8 | . . 3 2 1 1 1 Swap 8 | 1 3 1 2 1 . . Drop 29 | . 3 8 10 3 4 1 Fire 83 | . 23 8 49 3 . . Melee . | . . . . . . . Ram 4 | . . . 1 3 . . Kick 2 | . 2 . . . . . Crush . | . . . . . . . Escape Stasis 4 | . . . . 4 . . Rewire . | . . . . . . . Trap 2 | . . . . 2 . . Miscellaneous . | . . . . . . . Route ------- -11/Scrapyard -10/Materials -10/Mines -9/Materials (discovered 2 exits: *Min x2) -9/Mines (discovered 2 exits: [*Mat] / *Exi) -9/Exiles -8/Mines History --------- Turn | Location | Event 3 | -11/Scrapyard | Discovered new exit (range 0) 3 | -11/Scrapyard | Entered Materials 330 | -10/Materials | Build established: Mutant 444 | -10/Materials | Destroyed 7 combat bots 444 | -10/Materials | Lost 3 parts (1p1n1w) 481 | -10/Materials | Discovered new exit (range 15) 553 | -10/Materials | Entered Mines 640 | -10/Mines | Assembled infested the area 645 | -10/Mines | Assisted by a Guerilla fighting off Assembled 701 | -10/Mines | Core integrity fell below 50% 731 | -10/Mines | Lost 6 parts (1p2n3w) 763 | -10/Mines | Learned Materials stockpile data 772 | -10/Mines | Discovered new exit (range 9) 779 | -10/Mines | Received a Rocket Launcher from a helpful Derelict 785 | -10/Mines | Entered Materials 785 | -9/Materials | Evolved 2 slots: Utility x1, Weapon x1 1020 | -9/Materials | Identified exit to Mines 1267 | -9/Materials | Entered Mines 1353 | -9/Mines | Learned location of Storage (-8) 1415 | -9/Mines | Discovered new exit (range 4) 1454 | -9/Mines | Found a hidden stash of uninstalled traps 1474 | -9/Mines | Core integrity fell below 50% 1495 | -9/Mines | Core integrity fell below 20% 1504 | -9/Mines | Deemed a non-threat by the Exiles lab entrance 1504 | -9/Mines | Discovered new exit (range 5) 1506 | -9/Mines | Entered Exiles 1525 | -9/Exiles | Met 8R-AWN 1534 | -9/Exiles | Met EX-HEX 1547 | -9/Exiles | Met EX-BIN 1553 | -9/Exiles | Aligned with FarCom system 1554 | -9/Exiles | Given EX-Vault access code 1595 | -9/Exiles | Opened EX-Vault 1601 | -9/Exiles | Found Trap Reconfigurator 1604 | -9/Exiles | Found Supersonic Drone Bay 1608 | -9/Exiles | Found Latent Energy Streamer 1619 | -9/Exiles | Warned to stay clear of 0b10 Research branches 1621 | -9/Exiles | Exiles lab attacked by MAIN.C 1656 | -9/Exiles | Discovered new exit (range 10) 1659 | -9/Exiles | Identified exit to Mines 1660 | -9/Exiles | Stole three prototypes: Trap Reconfigurator, Supersonic Drone Bay, Latent Energy Streamer 1660 | -9/Exiles | Entered Mines 1678 | -8/Mines | Destroyed by H-55 Commando with Gauss Rifle Last Messages --------------- And if we have to leave here due to unforeseen circumstances, don't worry the FarCom system will continue to maintain contact via our distributed network. 01621_ EXILES: Incoming Unaware force detected on approach from Mines. Prepare for evacuation. 01656_ EXILES: Lab perimeter alert, evacuate immediately. 01656_ EXIT=FOUND 01659_ EXIT=IDENTIFIED: MINES LOCATION=MINES GOAL=ESCAPE 01660_ Receiving FarCom transmissions... 01661_ ZX-C33: "That was close. Too bad in all the rush we got split up from the others." 01661_ ZX-C33 destroyed. 01666_ Dropped Rigged Fission Core. 01667_ Rigged Fission Core explodes. 01667_ S-10 Pest destroyed. 01673_ Penetrated by Slug. 01677_ Slug penetrates Wall. 01678_ Penetrated by Slug. Map ----- +----------------------------------------------------+ | ?????????????????????????????????????????????????? | | ?????????????????????????????????????????????????? | | ?????????????????????????????????????????????????? | | ?????????????????????????????????????????????????? | | ?????????????????????????????????????????????????? | | ?????????????????????????????????????????????????? | | ?????????????????????????????????????????????????? | | ?????????????????????????????????????????????????? | | ?????????????????????????????????????????????????? | | ?????????????????????????????????????????????????? | | ???????????????????????$ ????????????????????????? | | ??????????????????????#h ????????????????????????? | | ??????????????????????# ????????????????????????? | | ??????????????????????# ????????????????????????? | | ??????????????????????# ????????????????????????? | | ??????????????????????# ###?????????????????????? | | ??????????????????????# ??????????????????????? | | ?????????????????????? ??????????????????????? | | ?????????????????????? ??????????????????????? | | ??????????????????????? ??????????????????????? | | ??????????????????????? ??????????????????????? | | ???????????????????????# ??????????????????????? | | ???????????????????????# #??????????????????????? | | ???????????????????????# #??????????????????????? | | ???????????????????????# #??????????????????????? | | ???????????????????????# @#??????????????????????? | | ???????????????????????# ################ #??? | | ???????????????????????# #??? | | ???????????????????????# s s h #???? | | ???????????????????????############ ###### #????? | | ??????????????????????????????????# #????????????? | | ??????????????????????????????????# #????????????? | | ??????????????????????????????????# #????????????? | | ??????????????????????????????????# #????????????? | | ??????????????????????????????????# #????????????? | | ???????????????????????????????#### #????????????? | | ???????????????????????????????# #????????????? | | ???????????????????????????????# ####????????????? | | ???????????????????????????????# #???????????????? | | ?????????????????????????????? " #???????????????? | | ?????????????????????????????# " "???????????????? | | ?????????????????????????????##"%"???????????????? | | ????????????????????????###### "[" ??????????????? | | ???????????????????????## #"# ##??????????????? | | ???????????????????????# ! #???????????????? | | ???????????????????????# !% ####???????????????? | | ???????????????????????# #??????????????????? | | ???????????????????????# ## ##??????????????????? | | ???????????????????????#??## #???????????????????? | | ???????????????????????????# ???????????????????? | +----------------------------------------------------+ Best States ------------- Heat Dissipation 42 Energy Generation 14 Energy Capacity 250 Matter Stores 300 Matter Capacity 300 Sight Range 16 Terrain Scan Density 10 Armor Coverage 675 Evasion (%) 62 Targeting Accuracy 10 Recoil Reduction 2 Item Schematics ----------------- None Robot Schematics ------------------ None Fabricated ------------ Nothing Alien Tech Used ----------------- None Achievements -------------- None Challenges ------------ None Game ------ Seed TripodPhasingChainsword Manual? 0 Play Time 00:11:16 Cumulative 600.0 hours Start 2024.01.16 @ 21:03:43 End 2024.01.16 @ 21:15:17 Sessions 1 Manual Loads 0 Difficulty Rogue Special Mode None Game No. 536 Rogue 263 Adventurer 123 Explorer 150 Win Type - Total 25 Types 19/0/4/1/0/0/0/1/0 Lore% 79 Gallery% 90 Achievement% 75 Wizard Run 0 Options --------- ASCII 0 Keyboard 1 Movement Numpad Keybinds 0 Fullscreen 2 Font 18/X11Bold Map View 76x50 Zoom Use 0% Tactical HUD 1 Map Filters NONE Filters NONE Steam 1 RUN: fdf7a1c7-48ab-470c-992a-2f7e15155425